[Event "Live Chess"]
[Site "Chess.com"]
[Date "2024.06.02"]
[Round "-"]
[White "WelshTiger"]
[Black "JanMur7"]
[Result "1-0"]
[WhiteElo "2480"]
[BlackElo "2302"]
[TimeControl "300"]
[EndTime "16:15:50 PDT"]
[Termination "WelshTiger won by resignation"]

1. e4 {[%clk 0:04:50.9]} 1... g6 {[%clk 0:04:58.2]} 2. d4 {[%clk 0:04:49.5]}
2... Bg7 {[%clk 0:04:57.3]} 3. Nc3 {[%clk 0:04:48.7]} 3... c5 {[%clk 0:04:56.7]}
4. d5 {[%clk 0:04:45.6]} 4... d6 {[%clk 0:04:55.3]} 5. h3 {[%clk 0:04:44.4]}
5... Nf6 {[%clk 0:04:54.4]} 6. Nf3 {[%clk 0:04:42.9]} 6... O-O {[%clk
0:04:51.1]} 7. Bc4 {[%clk 0:04:37]} 7... a6 {[%clk 0:04:50.2]} 8. a4 {[%clk
0:04:35.6]} 8... Nbd7 {[%clk 0:04:39.7]} 9. O-O {[%clk 0:04:31]} 9... Rb8 {[%clk
0:04:34.9]} 10. a5 {[%clk 0:04:21.7]} 10... b5 {[%clk 0:04:30.4]} 11. axb6
{[%clk 0:04:20]} 11... Qxb6 {[%clk 0:04:30]} 12. Ra2 {[%clk 0:04:02.2]} 12...
Qb4 {[%clk 0:04:25]} 13. b3 {[%clk 0:04:01]} 13... Qxc3 {[%clk 0:04:23.2]} 14.
Bd2 {[%clk 0:04:00.3]} 14... Qxc4 {[%clk 0:04:18]} 15. bxc4 {[%clk 0:03:58.8]}
15... Nxe4 {[%clk 0:04:17.6]} 16. Ba5 {[%clk 0:03:49.9]} 16... Nb6 {[%clk
0:04:12.8]} 17. Qd3 {[%clk 0:03:44.1]} 17... Bf5 {[%clk 0:04:09.8]} 18. Nh4
{[%clk 0:03:41]} 18... Nxf2 {[%clk 0:03:23.6]} 19. Qe2 {[%clk 0:03:09.1]} 19...
Ne4 {[%clk 0:03:12.4]} 20. Nxf5 {[%clk 0:03:06.2]} 20... gxf5 {[%clk 0:03:12.3]}
21. Rf3 {[%clk 0:02:32.8]} 21... Bd4+ {[%clk 0:02:58.2]} 22. Kh1 {[%clk
0:02:28.1]} 22... Kh8 {[%clk 0:02:53.2]} 23. g4 {[%clk 0:02:23.2]} 23... fxg4
{[%clk 0:02:40.1]} 24. hxg4 {[%clk 0:02:22]} 24... Ng5 {[%clk 0:02:36.9]} 25.
Rf5 {[%clk 0:02:19.1]} 25... Bf6 {[%clk 0:02:29.5]} 26. Rxf6 {[%clk 0:02:16]}
26... exf6 {[%clk 0:02:27.5]} 27. Bc3 {[%clk 0:02:14.9]} 27... Nd7 {[%clk
0:02:18.6]} 28. Rxa6 {[%clk 0:02:09.5]} 28... Rb1+ {[%clk 0:02:15.2]} 29. Kg2
{[%clk 0:02:07.9]} 29... Ne5 {[%clk 0:02:01.4]} 30. Rxd6 {[%clk 0:02:02.7]}
30... Re8 {[%clk 0:01:54.3]} 31. Rxf6 {[%clk 0:02:01.6]} 1-0

[Event "Live Chess"]
[Site "Chess.com"]
[Date "2024.06.02"]
[Round "-"]
[White "Queensandpawns"]
[Black "SavagePawn7"]
[Result "1-0"]
[WhiteElo "2310"]
[BlackElo "642"]
[TimeControl "300"]
[EndTime "16:16:13 PDT"]
[Termination "Queensandpawns won by resignation"]

1. e4 {[%clk 0:04:59.3]} 1... d5 {[%clk 0:04:56.4]} 2. Nc3 {[%clk 0:04:57.7]}
2... d4 {[%clk 0:04:50.3]} 3. Nd5 {[%clk 0:04:56.9]} 3... e6 {[%clk 0:04:48.3]}
4. Nf4 {[%clk 0:04:56.1]} 4... e5 {[%clk 0:04:47]} 5. Nd5 {[%clk 0:04:55.1]}
5... c6 {[%clk 0:04:41.2]} 6. c4 {[%clk 0:04:54.1]} 6... cxd5 {[%clk 0:04:39.7]}
7. cxd5 {[%clk 0:04:54]} 7... Nf6 {[%clk 0:04:30.1]} 8. Nf3 {[%clk 0:04:53.9]}
8... Bg4 {[%clk 0:04:25.8]} 9. Be2 {[%clk 0:04:50.7]} 9... Bb4 {[%clk
0:04:10.7]} 10. Qa4+ {[%clk 0:04:46.9]} 10... Nfd7 {[%clk 0:03:57.5]} 11. Qxb4
{[%clk 0:04:44.3]} 11... Na6 {[%clk 0:03:42.5]} 12. Qd6 {[%clk 0:04:42.3]} 12...
Nf6 {[%clk 0:03:20.6]} 13. Bb5+ {[%clk 0:04:37.1]} 13... Nd7 {[%clk 0:03:11.9]}
14. Nxe5 {[%clk 0:04:35.4]} 14... f6 {[%clk 0:02:45]} 15. Nxg4 {[%clk
0:04:30.4]} 1-0

[Event "Live Chess"]
[Site "Chess.com"]
[Date "2024.06.02"]
[Round "-"]
[White "ACM42"]
[Black "MagnersCarlsberg2870"]
[Result "1-0"]
[WhiteElo "2166"]
[BlackElo "1774"]
[TimeControl "300"]
[EndTime "16:16:33 PDT"]
[Termination "ACM42 won by resignation"]

1. e4 {[%clk 0:04:57]} 1... d6 {[%clk 0:04:58.2]} 2. d4 {[%clk 0:04:54.2]} 2...
Nf6 {[%clk 0:04:57.3]} 3. Nc3 {[%clk 0:04:52.4]} 3... g6 {[%clk 0:04:55.5]} 4.
f4 {[%clk 0:04:51.7]} 4... Bg7 {[%clk 0:04:53.8]} 5. Nf3 {[%clk 0:04:51]} 5...
c5 {[%clk 0:04:52.1]} 6. e5 {[%clk 0:04:45.8]} 6... dxe5 {[%clk 0:04:49.3]} 7.
fxe5 {[%clk 0:04:41.9]} 7... Nd5 {[%clk 0:04:46.1]} 8. Bb5+ {[%clk 0:04:29]}
8... Kf8 {[%clk 0:04:43.2]} 9. dxc5 {[%clk 0:04:19.3]} 9... e6 {[%clk
0:04:33.3]} 10. O-O {[%clk 0:04:00]} 10... Qa5 {[%clk 0:04:31.4]} 11. a4 {[%clk
0:03:41.7]} 11... a6 {[%clk 0:04:17.5]} 12. Nxd5 {[%clk 0:03:36.1]} 12... axb5
{[%clk 0:04:09.1]} 13. Ng5 {[%clk 0:03:20.8]} 13... exd5 {[%clk 0:04:03.6]} 14.
Nxf7 {[%clk 0:03:18.9]} 14... Bf5 {[%clk 0:03:57.5]} 15. Nxh8 {[%clk 0:03:14.2]}
15... Bxh8 {[%clk 0:03:56.7]} 16. g4 {[%clk 0:03:13.4]} 1-0

[Event "Live Chess"]
[Site "Chess.com"]
[Date "2024.06.02"]
[Round "-"]
[White "upoe610"]
[Black "TheSmoulderingMaster"]
[Result "1-0"]
[WhiteElo "2197"]
[BlackElo "1748"]
[TimeControl "300"]
[EndTime "16:16:34 PDT"]
[Termination "upoe610 won by resignation"]

1. c3 {[%clk 0:04:54.9]} 1... d5 {[%clk 0:04:58.5]} 2. g3 {[%clk 0:04:53.8]}
2... e5 {[%clk 0:04:57.6]} 3. Bg2 {[%clk 0:04:53.2]} 3... Nf6 {[%clk 0:04:56.1]}
4. d4 {[%clk 0:04:44.3]} 4... e4 {[%clk 0:04:54.8]} 5. c4 {[%clk 0:04:39.9]}
5... c6 {[%clk 0:04:53.6]} 6. Nc3 {[%clk 0:04:38.1]} 6... Bg4 {[%clk 0:04:50.1]}
7. h3 {[%clk 0:04:35]} 7... Bh5 {[%clk 0:04:48.8]} 8. Qb3 {[%clk 0:04:32.7]}
8... Qd7 {[%clk 0:04:46.2]} 9. e3 {[%clk 0:04:27.4]} 9... Na6 {[%clk 0:04:43.3]}
10. Nge2 {[%clk 0:04:26.3]} 10... Nc7 {[%clk 0:04:42]} 11. Nf4 {[%clk
0:04:24.5]} 11... Bg6 {[%clk 0:04:40]} 12. O-O {[%clk 0:04:20.3]} 12... Bd6
{[%clk 0:04:38.7]} 13. cxd5 {[%clk 0:04:17.7]} 13... cxd5 {[%clk 0:04:34.1]} 14.
Nfxd5 {[%clk 0:04:16.6]} 14... Ncxd5 {[%clk 0:04:33]} 15. Nxd5 {[%clk
0:04:15.8]} 15... Nxd5 {[%clk 0:04:30.7]} 16. Qxd5 {[%clk 0:04:14.2]} 16... O-O
{[%clk 0:04:28.9]} 17. Bd2 {[%clk 0:04:05.5]} 17... Rad8 {[%clk 0:04:26.4]} 18.
Rac1 {[%clk 0:04:01.5]} 18... Qa4 {[%clk 0:04:23]} 19. a3 {[%clk 0:03:41.1]}
19... Bxg3 {[%clk 0:04:19.8]} 20. Qc4 {[%clk 0:03:33.7]} 20... Qxc4 {[%clk
0:04:14.6]} 21. Rxc4 {[%clk 0:03:33.6]} 21... Bd6 {[%clk 0:04:11.7]} 22. Bb4
{[%clk 0:03:29.8]} 22... Bxb4 {[%clk 0:04:09.8]} 23. Rxb4 {[%clk 0:03:28.6]}
23... b6 {[%clk 0:04:09]} 24. Rc1 {[%clk 0:03:27.4]} 24... Rd7 {[%clk
0:04:07.3]} 25. Rbc4 {[%clk 0:03:23.1]} 25... h6 {[%clk 0:04:04.4]} 26. Rc7
{[%clk 0:03:19.8]} 26... Rfd8 {[%clk 0:04:03.3]} 27. Kf1 {[%clk 0:03:18.4]}
27... Kf8 {[%clk 0:04:01.6]} 28. Ke2 {[%clk 0:03:17.2]} 28... Ke7 {[%clk
0:04:00.6]} 29. Rxd7+ {[%clk 0:03:12.7]} 29... Rxd7 {[%clk 0:03:59.2]} 30. Rc6
{[%clk 0:03:07.5]} 30... Kd8 {[%clk 0:03:54.7]} 31. Kd2 {[%clk 0:03:05.3]} 31...
Ke7 {[%clk 0:03:46.6]} 32. Kc3 {[%clk 0:03:03.9]} 32... Kd8 {[%clk 0:03:43.8]}
33. Kb4 {[%clk 0:03:02.3]} 33... Rd5 {[%clk 0:03:41.1]} 34. Bf1 {[%clk 0:02:56]}
34... a5+ {[%clk 0:03:35.6]} 35. Kb3 {[%clk 0:02:55]} 35... b5 {[%clk
0:03:27.2]} 36. a4 {[%clk 0:02:53.4]} 36... bxa4+ {[%clk 0:03:20.8]} 37. Kxa4
{[%clk 0:02:51.9]} 37... Bh5 {[%clk 0:03:20.2]} 38. Ra6 {[%clk 0:02:48.6]} 38...
Bd1+ {[%clk 0:03:18.3]} 39. b3 {[%clk 0:02:47.8]} 39... Rf5 {[%clk 0:03:14.9]}
40. Rxa5 {[%clk 0:02:35.8]} 40... Bxb3+ {[%clk 0:03:12]} 41. Kb4 {[%clk
0:02:34.1]} 41... Rxf2 {[%clk 0:03:07.3]} 42. Ra8+ {[%clk 0:02:32.7]} 42... Ke7
{[%clk 0:03:05.8]} 43. Ra7+ {[%clk 0:02:31.3]} 43... Kf6 {[%clk 0:03:04.3]} 44.
Bb5 {[%clk 0:02:30.1]} 44... Bd1 {[%clk 0:02:58.5]} 45. Be8 {[%clk 0:02:28.5]}
45... Kg6 {[%clk 0:02:55.7]} 46. d5 {[%clk 0:02:27.1]} 46... Rd2 {[%clk
0:02:53.5]} 47. Rxf7 {[%clk 0:02:22.4]} 47... Kh7 {[%clk 0:02:41.3]} 48. Kc5
{[%clk 0:02:20.9]} 48... Bb3 {[%clk 0:02:37.4]} 49. d6 {[%clk 0:02:19.9]} 49...
Bxf7 {[%clk 0:02:35.9]} 50. Bxf7 {[%clk 0:02:19.8]} 50... g5 {[%clk 0:02:32.8]}
51. Bd5 {[%clk 0:02:18.5]} 51... Kg7 {[%clk 0:02:31.1]} 52. d7 {[%clk
0:02:17.7]} 1-0

[Event "Live Chess"]
[Site "Chess.com"]
[Date "2024.06.02"]
[Round "-"]
[White "Dhaydon19"]
[Black "AlexanderMatlak"]
[Result "1-0"]
[WhiteElo "2678"]
[BlackElo "2393"]
[TimeControl "300"]
[EndTime "16:17:03 PDT"]
[Termination "Dhaydon19 won on time"]

1. Nf3 {[%clk 0:04:58.2]} 1... Nf6 {[%clk 0:04:58.9]} 2. e3 {[%clk 0:04:57.9]}
2... g6 {[%clk 0:04:57]} 3. b3 {[%clk 0:04:57.6]} 3... Bg7 {[%clk 0:04:56.1]} 4.
Bb2 {[%clk 0:04:57.4]} 4... O-O {[%clk 0:04:55.3]} 5. Be2 {[%clk 0:04:57.1]}
5... c5 {[%clk 0:04:54.7]} 6. O-O {[%clk 0:04:56.8]} 6... b6 {[%clk 0:04:50.9]}
7. c4 {[%clk 0:04:56.4]} 7... Bb7 {[%clk 0:04:49.8]} 8. Nc3 {[%clk 0:04:56]}
8... e6 {[%clk 0:04:47.6]} 9. Qc2 {[%clk 0:04:54.8]} 9... d6 {[%clk 0:04:45.5]}
10. d4 {[%clk 0:04:53.6]} 10... a6 {[%clk 0:04:42.7]} 11. dxc5 {[%clk
0:04:52.7]} 11... dxc5 {[%clk 0:04:42.6]} 12. Rad1 {[%clk 0:04:52]} 12... Qc7
{[%clk 0:04:40.8]} 13. h3 {[%clk 0:04:43.6]} 13... Nc6 {[%clk 0:04:39]} 14. a3
{[%clk 0:04:43]} 14... Rfd8 {[%clk 0:04:37.4]} 15. Rxd8+ {[%clk 0:04:41.9]}
15... Rxd8 {[%clk 0:04:37.3]} 16. Rd1 {[%clk 0:04:41.2]} 16... h6 {[%clk
0:04:31.2]} 17. Rxd8+ {[%clk 0:04:39]} 17... Qxd8 {[%clk 0:04:31.1]} 18. Na4
{[%clk 0:04:37.9]} 18... Qc7 {[%clk 0:04:17.3]} 19. Bc3 {[%clk 0:04:35.6]} 19...
Ne8 {[%clk 0:04:11.5]} 20. Bxg7 {[%clk 0:04:32.8]} 20... Nxg7 {[%clk 0:04:11.4]}
21. Qc3 {[%clk 0:04:30]} 21... Nf5 {[%clk 0:03:30.9]} 22. b4 {[%clk 0:04:26.2]}
22... cxb4 {[%clk 0:03:27.6]} 23. axb4 {[%clk 0:04:25.5]} 23... Nd6 {[%clk
0:03:21.4]} 24. c5 {[%clk 0:04:22.4]} 24... bxc5 {[%clk 0:03:16.4]} 25. Nxc5
{[%clk 0:04:19.1]} 25... a5 {[%clk 0:02:56.2]} 26. bxa5 {[%clk 0:04:13.4]} 26...
Qxa5 {[%clk 0:02:51.1]} 27. Qc1 {[%clk 0:04:09.7]} 27... Ne7 {[%clk 0:02:34.4]}
28. Ne5 {[%clk 0:04:03.7]} 28... Qc7 {[%clk 0:02:23.8]} 29. Qa3 {[%clk
0:03:59.2]} 29... Bd5 {[%clk 0:02:16.8]} 30. Ned7 {[%clk 0:03:54.9]} 30... Ne8
{[%clk 0:01:25.1]} 31. Qc3 {[%clk 0:03:43.1]} 31... Bc6 {[%clk 0:01:13.6]} 32.
Ne5 {[%clk 0:03:34.7]} 32... Bd5 {[%clk 0:01:09.7]} 33. Ng4 {[%clk 0:03:31.1]}
33... Kh7 {[%clk 0:00:58.4]} 34. e4 {[%clk 0:03:24.8]} 34... Ba8 {[%clk
0:00:50.4]} 35. Qe3 {[%clk 0:03:22.8]} 35... g5 {[%clk 0:00:45]} 36. h4 {[%clk
0:03:21.6]} 36... Qf4 {[%clk 0:00:32.2]} 37. Qd4 {[%clk 0:03:08.7]} 37... Bc6
{[%clk 0:00:23.9]} 38. hxg5 {[%clk 0:02:59.6]} 38... hxg5 {[%clk 0:00:23.8]} 39.
g3 {[%clk 0:02:56.2]} 39... Qd6 {[%clk 0:00:19.6]} 40. Nf6+ {[%clk 0:02:51.6]}
40... Kg6 {[%clk 0:00:18.9]} 41. Bh5+ {[%clk 0:02:48.6]} 41... Kh6 {[%clk
0:00:14.7]} 42. Qxd6 {[%clk 0:02:43.8]} 42... Nxd6 {[%clk 0:00:14.6]} 43. Be2
{[%clk 0:02:36.9]} 43... Kg7 {[%clk 0:00:13.1]} 44. e5 {[%clk 0:02:34.4]} 44...
Ndf5 {[%clk 0:00:10.7]} 45. Bd3 {[%clk 0:02:31.6]} 45... Nd5 {[%clk 0:00:07.7]}
46. Nh5+ {[%clk 0:02:27.4]} 46... Kh6 {[%clk 0:00:04.3]} 47. Bxf5 {[%clk
0:02:23.6]} 47... Kxh5 {[%clk 0:00:01.5]} 48. Be4 {[%clk 0:02:21.2]} 1-0

[Event "Live Chess"]
[Site "Chess.com"]
[Date "2024.06.02"]
[Round "-"]
[White "katoma"]
[Black "CarmelJane"]
[Result "0-1"]
[WhiteElo "2021"]
[BlackElo "2068"]
[TimeControl "300"]
[EndTime "16:17:22 PDT"]
[Termination "CarmelJane won on time"]

1. e4 {[%clk 0:04:55.5]} 1... c5 {[%clk 0:04:57.7]} 2. Nf3 {[%clk 0:04:50.7]}
2... e6 {[%clk 0:04:57]} 3. d4 {[%clk 0:04:48.4]} 3... cxd4 {[%clk 0:04:56.9]}
4. Nxd4 {[%clk 0:04:46.9]} 4... Nf6 {[%clk 0:04:52]} 5. Bd3 {[%clk 0:04:42.5]}
5... Nc6 {[%clk 0:04:50.2]} 6. Nxc6 {[%clk 0:04:40]} 6... bxc6 {[%clk
0:04:48.4]} 7. O-O {[%clk 0:04:32.1]} 7... d5 {[%clk 0:04:46.8]} 8. Nd2 {[%clk
0:04:30.6]} 8... Be7 {[%clk 0:04:41]} 9. Qe2 {[%clk 0:04:25.8]} 9... a5 {[%clk
0:04:37.9]} 10. b3 {[%clk 0:04:23.1]} 10... O-O {[%clk 0:04:35.7]} 11. Bb2
{[%clk 0:04:21.2]} 11... Re8 {[%clk 0:03:41.5]} 12. f4 {[%clk 0:04:05.8]} 12...
Qb6+ {[%clk 0:02:48.9]} 13. Kh1 {[%clk 0:04:03]} 13... Ba6 {[%clk 0:02:36.5]}
14. c4 {[%clk 0:03:50.7]} 14... Rad8 {[%clk 0:02:23.2]} 15. e5 {[%clk
0:03:39.5]} 15... Nd7 {[%clk 0:01:59.7]} 16. Rf3 {[%clk 0:03:36.8]} 16... c5
{[%clk 0:01:49.7]} 17. cxd5 {[%clk 0:02:51]} 17... Bxd3 {[%clk 0:01:47.3]} 18.
Rxd3 {[%clk 0:02:47.7]} 18... exd5 {[%clk 0:01:35]} 19. Rxd5 {[%clk 0:02:46.5]}
19... Qg6 {[%clk 0:01:04.7]} 20. Nc4 {[%clk 0:02:31.1]} 20... Nb6 {[%clk
0:00:53]} 21. Rxd8 {[%clk 0:02:08.8]} 21... Rxd8 {[%clk 0:00:50.3]} 22. Nxa5
{[%clk 0:02:07.6]} 22... c4 {[%clk 0:00:27.6]} 23. bxc4 {[%clk 0:01:50.1]} 23...
Bb4 {[%clk 0:00:20.9]} 24. Nb3 {[%clk 0:01:48]} 24... Na4 {[%clk 0:00:16.5]} 25.
Bd4 {[%clk 0:01:06.6]} 25... Nc3 {[%clk 0:00:14]} 26. Qf2 {[%clk 0:00:56.8]}
26... Ne4 {[%clk 0:00:13.1]} 27. Qe3 {[%clk 0:00:46]} 27... Bc3 {[%clk
0:00:12.7]} 28. Bxc3 {[%clk 0:00:39.2]} 28... Nxc3 {[%clk 0:00:12.2]} 29. Qxc3
{[%clk 0:00:34.6]} 29... Qg4 {[%clk 0:00:12.1]} 30. Qf3 {[%clk 0:00:25.1]} 30...
Qf5 {[%clk 0:00:10.9]} 31. c5 {[%clk 0:00:20.7]} 31... h5 {[%clk 0:00:07.4]} 32.
h3 {[%clk 0:00:17.4]} 32... Rd3 {[%clk 0:00:07]} 33. Qf2 {[%clk 0:00:14.3]}
33... Kh7 {[%clk 0:00:06.4]} 34. c6 {[%clk 0:00:12.2]} 34... g6 {[%clk 0:00:06]}
35. c7 {[%clk 0:00:10.5]} 35... Rc3 {[%clk 0:00:05.6]} 36. Rc1 {[%clk
0:00:08.5]} 36... Rxc1+ {[%clk 0:00:05.1]} 37. Nxc1 {[%clk 0:00:07.6]} 37... Qc8
{[%clk 0:00:04.3]} 38. Qc5 {[%clk 0:00:06]} 38... h4 {[%clk 0:00:04]} 39. Qc4
{[%clk 0:00:04.1]} 39... Kg7 {[%clk 0:00:03.7]} 40. Nb3 {[%clk 0:00:01.3]} 40...
Qe6 {[%clk 0:00:02.9]} 0-1

[Event "Live Chess"]
[Site "Chess.com"]
[Date "2024.06.02"]
[Round "-"]
[White "Crowded_House"]
[Black "jimwad"]
[Result "0-1"]
[WhiteElo "1727"]
[BlackElo "1333"]
[TimeControl "300"]
[EndTime "16:17:24 PDT"]
[Termination "jimwad won by checkmate"]

1. d4 {[%clk 0:04:57.7]} 1... d5 {[%clk 0:04:59]} 2. Bg5 {[%clk 0:04:56.8]} 2...
Nf6 {[%clk 0:04:51.5]} 3. e3 {[%clk 0:04:53.7]} 3... Bf5 {[%clk 0:04:49.4]} 4.
Bd3 {[%clk 0:04:51.5]} 4... Bxd3 {[%clk 0:04:47.5]} 5. Qxd3 {[%clk 0:04:50.3]}
5... Nbd7 {[%clk 0:04:42.3]} 6. Nd2 {[%clk 0:04:48.4]} 6... c6 {[%clk
0:04:39.4]} 7. Ngf3 {[%clk 0:04:45.5]} 7... e6 {[%clk 0:04:37.7]} 8. O-O {[%clk
0:04:43]} 8... Be7 {[%clk 0:04:36.6]} 9. Rfe1 {[%clk 0:04:40.9]} 9... O-O {[%clk
0:04:35.1]} 10. c3 {[%clk 0:04:39.1]} 10... Ne8 {[%clk 0:04:29.3]} 11. Bxe7
{[%clk 0:04:37.1]} 11... Qxe7 {[%clk 0:04:28.4]} 12. e4 {[%clk 0:04:36.3]} 12...
dxe4 {[%clk 0:04:21.5]} 13. Rxe4 {[%clk 0:04:26.9]} 13... Nef6 {[%clk
0:04:19.9]} 14. Re2 {[%clk 0:04:23]} 14... Rad8 {[%clk 0:04:15.6]} 15. Qc2
{[%clk 0:04:17.8]} 15... Nb6 {[%clk 0:04:11.6]} 16. Rae1 {[%clk 0:04:13.6]}
16... h6 {[%clk 0:03:42.4]} 17. Ne4 {[%clk 0:04:10.4]} 17... Nxe4 {[%clk
0:03:40.1]} 18. Rxe4 {[%clk 0:04:05]} 18... Nd5 {[%clk 0:03:37.9]} 19. Ne5
{[%clk 0:03:50.2]} 19... Nf6 {[%clk 0:03:32.5]} 20. R4e2 {[%clk 0:03:47.2]}
20... c5 {[%clk 0:02:56.4]} 21. dxc5 {[%clk 0:03:38.4]} 21... Qxc5 {[%clk
0:02:53.7]} 22. Nf3 {[%clk 0:03:27.7]} 22... Rfe8 {[%clk 0:02:41.6]} 23. Rd2
{[%clk 0:03:15.2]} 23... Rxd2 {[%clk 0:02:34.2]} 24. Qxd2 {[%clk 0:03:13.3]}
24... Qd5 {[%clk 0:02:28.6]} 25. Qxd5 {[%clk 0:03:02.3]} 25... Nxd5 {[%clk
0:02:27.1]} 26. Nd4 {[%clk 0:02:51.7]} 26... a6 {[%clk 0:02:23.5]} 27. Nb3
{[%clk 0:02:46.2]} 27... Nf4 {[%clk 0:02:18.3]} 28. Rd1 {[%clk 0:02:39.5]} 28...
Kf8 {[%clk 0:02:14.7]} 29. Nc5 {[%clk 0:02:37.8]} 29... Nd5 {[%clk 0:02:12.2]}
30. c4 {[%clk 0:02:24.2]} 30... Nb4 {[%clk 0:02:08.5]} 31. a3 {[%clk 0:02:18.9]}
31... Nc6 {[%clk 0:01:54.8]} 32. Rd7 {[%clk 0:02:09.5]} 32... b6 {[%clk
0:01:49.4]} 33. Nxa6 {[%clk 0:02:04.4]} 33... Na5 {[%clk 0:01:47.8]} 34. Rd4
{[%clk 0:01:33.2]} 34... Rc8 {[%clk 0:01:45.2]} 35. h3 {[%clk 0:01:20.1]} 35...
Nxc4 {[%clk 0:01:42.5]} 36. b3 {[%clk 0:01:09.7]} 36... Nxa3 {[%clk 0:01:41.1]}
37. Rb4 {[%clk 0:01:08.2]} 37... b5 {[%clk 0:01:33.4]} 38. Kf1 {[%clk
0:00:55.9]} 38... Ke7 {[%clk 0:01:23.4]} 39. Ke2 {[%clk 0:00:54.7]} 39... Rc2+
{[%clk 0:01:16.8]} 40. Ke3 {[%clk 0:00:49.3]} 40... Rb2 {[%clk 0:01:14.4]} 41.
Nc5 {[%clk 0:00:45.4]} 41... Nc2+ {[%clk 0:01:12]} 42. Kd3 {[%clk 0:00:41.8]}
42... Nxb4+ {[%clk 0:01:09.7]} 43. Kc3 {[%clk 0:00:41.7]} 43... Rxf2 {[%clk
0:01:07.5]} 44. Kxb4 {[%clk 0:00:34.6]} 44... Rxg2 {[%clk 0:01:05.1]} 45. Kxb5
{[%clk 0:00:33.3]} 45... Rg3 {[%clk 0:01:03.9]} 46. b4 {[%clk 0:00:31.7]} 46...
Rxh3 {[%clk 0:01:02.6]} 47. Kc4 {[%clk 0:00:28.5]} 47... Kd6 {[%clk 0:01:01.1]}
48. Ne4+ {[%clk 0:00:26.6]} 48... Kc6 {[%clk 0:00:58.6]} 49. Nc3 {[%clk
0:00:25]} 49... Rxc3+ {[%clk 0:00:52.3]} 50. Kxc3 {[%clk 0:00:23.4]} 50... g5
{[%clk 0:00:52.2]} 51. Kd4 {[%clk 0:00:22.1]} 51... h5 {[%clk 0:00:51]} 52. Ke3
{[%clk 0:00:21.3]} 52... f6 {[%clk 0:00:50.2]} 53. Kf3 {[%clk 0:00:21.1]} 53...
Kb5 {[%clk 0:00:49.4]} 54. Kg3 {[%clk 0:00:21]} 54... Kxb4 {[%clk 0:00:48.7]}
55. Kf3 {[%clk 0:00:20.9]} 55... Kc4 {[%clk 0:00:47.9]} 56. Ke3 {[%clk
0:00:20.8]} 56... h4 {[%clk 0:00:46.5]} 57. Ke4 {[%clk 0:00:20.7]} 57... h3
{[%clk 0:00:45.3]} 58. Kf3 {[%clk 0:00:20.6]} 58... f5 {[%clk 0:00:43.8]} 59.
Kg3 {[%clk 0:00:20.1]} 59... g4 {[%clk 0:00:43.2]} 60. Kh2 {[%clk 0:00:19.3]}
60... Kd3 {[%clk 0:00:42.4]} 61. Kg1 {[%clk 0:00:19.2]} 61... g3 {[%clk
0:00:40.1]} 62. Kh1 {[%clk 0:00:16.6]} 62... f4 {[%clk 0:00:38.2]} 63. Kg1
{[%clk 0:00:15.7]} 63... f3 {[%clk 0:00:37.5]} 64. Kf1 {[%clk 0:00:15.1]} 64...
h2 {[%clk 0:00:36.4]} 65. Ke1 {[%clk 0:00:14]} 65... h1=Q# {[%clk 0:00:34.7]}
0-1

[Event "Live Chess"]
[Site "Chess.com"]
[Date "2024.06.02"]
[Round "-"]
[White "raclement"]
[Black "AndrewBak1"]
[Result "0-1"]
[WhiteElo "1724"]
[BlackElo "1874"]
[TimeControl "300"]
[EndTime "16:17:25 PDT"]
[Termination "AndrewBak1 won by resignation"]

1. Nf3 {[%clk 0:04:53.6]} 1... c5 {[%clk 0:04:57.5]} 2. g3 {[%clk 0:04:50.6]}
2... Nc6 {[%clk 0:04:56.7]} 3. Bg2 {[%clk 0:04:47.5]} 3... d5 {[%clk 0:04:50.8]}
4. c4 {[%clk 0:04:41.9]} 4... d4 {[%clk 0:04:48.1]} 5. O-O {[%clk 0:04:38.5]}
5... Nf6 {[%clk 0:04:41.7]} 6. d3 {[%clk 0:04:37.1]} 6... Bf5 {[%clk 0:04:38.5]}
7. b4 {[%clk 0:04:23.9]} 7... Nxb4 {[%clk 0:04:34.6]} 8. Qa4+ {[%clk 0:04:20.7]}
8... Bd7 {[%clk 0:04:29.4]} 9. Qb3 {[%clk 0:04:18.1]} 9... Rb8 {[%clk
0:04:17.4]} 10. Ne5 {[%clk 0:04:15.9]} 10... e6 {[%clk 0:04:00.1]} 11. Nxd7
{[%clk 0:04:08.8]} 11... Qxd7 {[%clk 0:03:55.7]} 12. a3 {[%clk 0:04:07.5]} 12...
Nc6 {[%clk 0:03:53.9]} 13. e3 {[%clk 0:03:58.7]} 13... Be7 {[%clk 0:03:43.7]}
14. exd4 {[%clk 0:03:57.2]} 14... Nxd4 {[%clk 0:03:40.9]} 15. Qd1 {[%clk
0:03:49.6]} 15... O-O {[%clk 0:03:35.4]} 16. Nc3 {[%clk 0:03:48.2]} 16... a6
{[%clk 0:03:26.2]} 17. Be3 {[%clk 0:03:45.2]} 17... b5 {[%clk 0:03:20.9]} 18.
Bxd4 {[%clk 0:03:42.4]} 18... Qxd4 {[%clk 0:03:19]} 19. Ne4 {[%clk 0:03:33.3]}
19... Nxe4 {[%clk 0:03:16.4]} 20. dxe4 {[%clk 0:03:31.3]} 20... Qxc4 {[%clk
0:03:10]} 21. a4 {[%clk 0:03:24.3]} 21... b4 {[%clk 0:03:06]} 22. Qd7 {[%clk
0:03:21.9]} 22... Bf6 {[%clk 0:03:02.4]} 23. Rac1 {[%clk 0:03:18.2]} 23... Qa2
{[%clk 0:02:43.8]} 24. Rxc5 {[%clk 0:03:14.8]} 24... b3 {[%clk 0:02:42.1]} 25.
e5 {[%clk 0:03:07.9]} 25... Bg5 {[%clk 0:02:32.5]} 26. f4 {[%clk 0:03:02.3]}
26... Bd8 {[%clk 0:02:24.1]} 27. Qd3 {[%clk 0:02:59.7]} 27... Bb6 {[%clk
0:02:20.2]} 28. Rc1 {[%clk 0:02:48.6]} 28... b2 {[%clk 0:02:16.5]} 0-1

[Event "Live Chess"]
[Site "Chess.com"]
[Date "2024.06.02"]
[Round "-"]
[White "NebodarMatevich"]
[Black "KwikPhoenix"]
[Result "0-1"]
[WhiteElo "1562"]
[BlackElo "2445"]
[TimeControl "300"]
[EndTime "16:17:45 PDT"]
[Termination "KwikPhoenix won by checkmate"]

1. e4 {[%clk 0:04:59.4]} 1... d5 {[%clk 0:04:59.3]} 2. exd5 {[%clk 0:04:57.7]}
2... Qxd5 {[%clk 0:04:59.2]} 3. Nf3 {[%clk 0:04:56]} 3... Qd8 {[%clk 0:04:59.1]}
4. d4 {[%clk 0:04:54.5]} 4... Nf6 {[%clk 0:04:59]} 5. c4 {[%clk 0:04:53.8]} 5...
g6 {[%clk 0:04:58.9]} 6. Nc3 {[%clk 0:04:53.2]} 6... Bg7 {[%clk 0:04:58.8]} 7.
Be2 {[%clk 0:04:51.5]} 7... O-O {[%clk 0:04:58.7]} 8. O-O {[%clk 0:04:50.8]}
8... Bg4 {[%clk 0:04:58.1]} 9. h3 {[%clk 0:04:49.2]} 9... Bf5 {[%clk 0:04:57.6]}
10. Qb3 {[%clk 0:04:44.9]} 10... Qc8 {[%clk 0:04:55.1]} 11. Be3 {[%clk
0:04:29.4]} 11... Rd8 {[%clk 0:04:54.2]} 12. Rad1 {[%clk 0:04:28]} 12... c6
{[%clk 0:04:49.8]} 13. Bg5 {[%clk 0:04:02.4]} 13... h6 {[%clk 0:04:40.2]} 14.
Bh4 {[%clk 0:04:01.8]} 14... Na6 {[%clk 0:04:35]} 15. a3 {[%clk 0:03:57.1]}
15... Nc7 {[%clk 0:04:29.4]} 16. Bd3 {[%clk 0:03:44.9]} 16... Bxd3 {[%clk
0:04:15.4]} 17. Rxd3 {[%clk 0:03:43.5]} 17... Ne6 {[%clk 0:04:15.3]} 18. Rfd1
{[%clk 0:03:38.6]} 18... Nf4 {[%clk 0:04:05.5]} 19. R3d2 {[%clk 0:03:31.8]}
19... g5 {[%clk 0:04:04.4]} 20. Bg3 {[%clk 0:03:30.5]} 20... N6h5 {[%clk
0:04:04]} 21. Bh2 {[%clk 0:03:27]} 21... g4 {[%clk 0:03:58]} 22. hxg4 {[%clk
0:03:17.6]} 22... Qxg4 {[%clk 0:03:57.9]} 23. Ne4 {[%clk 0:03:05]} 23... Qxg2#
{[%clk 0:03:56.2]} 0-1